[Event "Late-Titled-Tuesday-Blitz-June-25-2024"]
[Site "Chess.com"]
[Date "2024.06.25"]
[Round "4"]
[White "IsaacWiebe"]
[Black "ybothg"]
[Result "1-0"]
[WhiteElo "2370"]
[BlackElo "2494"]
[TimeControl "180+1"]
[EndTime "14:36:36 PDT"]
[Termination "IsaacWiebe won by resignation"]

1. e4 {[%clk 0:02:59.8]} 1... c5 {[%clk 0:03:00.1]} 2. Nf3 {[%clk 0:03:00.1]}
2... e6 {[%clk 0:03:00.1]} 3. d4 {[%clk 0:02:59.5]} 3... cxd4 {[%clk 0:03:01]}
4. Nxd4 {[%clk 0:03:00.4]} 4... Nf6 {[%clk 0:03:01.6]} 5. Nc3 {[%clk 0:03:00.6]}
5... Nc6 {[%clk 0:03:02.2]} 6. Ndb5 {[%clk 0:03:00.9]} 6... Bb4 {[%clk
0:03:02.4]} 7. a3 {[%clk 0:03:00.7]} 7... Bxc3+ {[%clk 0:03:02.6]} 8. Nxc3
{[%clk 0:03:01.1]} 8... d5 {[%clk 0:03:03.3]} 9. exd5 {[%clk 0:03:01.5]} 9...
exd5 {[%clk 0:03:04.2]} 10. Bd3 {[%clk 0:03:01.1]} 10... O-O {[%clk 0:03:03.7]}
11. O-O {[%clk 0:03:01.8]} 11... d4 {[%clk 0:03:04.4]} 12. Ne2 {[%clk 0:03:02]}
12... Bg4 {[%clk 0:03:05]} 13. f3 {[%clk 0:03:01.5]} 13... Bh5 {[%clk
0:03:05.6]} 14. Nf4 {[%clk 0:03:00.2]} 14... Bg6 {[%clk 0:03:06.2]} 15. Nxg6
{[%clk 0:02:59.4]} 15... hxg6 {[%clk 0:03:07.1]} 16. Bg5 {[%clk 0:02:53.9]}
16... Qd6 {[%clk 0:03:07.3]} 17. Bxf6 {[%clk 0:02:53]} 17... Qxf6 {[%clk
0:03:07.6]} 18. Re1 {[%clk 0:02:52]} 18... Rfe8 {[%clk 0:03:06.9]} 19. Qd2
{[%clk 0:02:51.8]} 19... Ne5 {[%clk 0:03:04.6]} 20. Rad1 {[%clk 0:02:48.8]}
20... Rad8 {[%clk 0:03:01.3]} 21. Bf1 {[%clk 0:02:26.1]} 21... Qb6 {[%clk
0:02:50.1]} 22. Qb4 {[%clk 0:02:26.3]} 22... Qxb4 {[%clk 0:02:41.3]} 23. axb4
{[%clk 0:02:26.5]} 23... a6 {[%clk 0:02:40.3]} 24. b5 {[%clk 0:02:24.1]} 24...
a5 {[%clk 0:01:29.7]} 25. f4 {[%clk 0:02:22.1]} 25... Ng4 {[%clk 0:01:30.2]} 26.
Rxe8+ {[%clk 0:02:19.3]} 26... Rxe8 {[%clk 0:01:31.1]} 27. Rxd4 {[%clk
0:02:19.5]} 27... Re1 {[%clk 0:01:31.1]} 28. Rd2 {[%clk 0:02:07.6]} 28... Rb1
{[%clk 0:00:57.4]} 29. b3 {[%clk 0:02:03.1]} 29... Ne3 {[%clk 0:00:47.3]} 30.
Rf2 {[%clk 0:02:03.2]} 30... Rc1 {[%clk 0:00:37.6]} 31. g3 {[%clk 0:01:38.6]}
31... Nxc2 {[%clk 0:00:35.8]} 32. Rf3 {[%clk 0:01:33.6]} 32... Nd4 {[%clk
0:00:31.3]} 33. Rd3 {[%clk 0:01:31.8]} 33... Nxb5 {[%clk 0:00:26.2]} 34. Rd8+
{[%clk 0:01:27.1]} 34... Kh7 {[%clk 0:00:26]} 35. Kg2 {[%clk 0:01:26.3]} 35...
Nc7 {[%clk 0:00:20]} 36. Bc4 {[%clk 0:01:23.9]} 36... f5 {[%clk 0:00:12.2]} 37.
Bg8+ {[%clk 0:01:21.7]} 37... Kh8 {[%clk 0:00:10.4]} 38. Bc4+ {[%clk 0:01:18]}
38... Kh7 {[%clk 0:00:11.3]} 39. Bg8+ {[%clk 0:01:10]} 39... Kh8 {[%clk
0:00:06.5]} 40. Rc8 {[%clk 0:01:09]} 40... Rc2+ {[%clk 0:00:05.3]} 41. Kh3
{[%clk 0:01:08.6]} 41... Rc3 {[%clk 0:00:04.9]} 42. Bc4+ {[%clk 0:01:07.7]}
42... Kh7 {[%clk 0:00:05.8]} 43. Rxc7 {[%clk 0:01:06.8]} 1-0

[Event "Late-Titled-Tuesday-Blitz-June-25-2024"]
[Site "Chess.com"]
[Date "2024.06.25"]
[Round "4"]
[White "MKlose11"]
[Black "ACollins05"]
[Result "1-0"]
[WhiteElo "2620"]
[BlackElo "2413"]
[TimeControl "180+1"]
[EndTime "14:36:39 PDT"]
[Termination "MKlose11 won by checkmate"]

1. e4 {[%clk 0:02:58]} 1... a6 {[%clk 0:02:59.5]} 2. d4 {[%clk 0:02:57]} 2... b5
{[%clk 0:02:59.7]} 3. Be3 {[%clk 0:02:57.3]} 3... Bb7 {[%clk 0:03:00.1]} 4. Bd3
{[%clk 0:02:56.2]} 4... e6 {[%clk 0:03:00.3]} 5. c3 {[%clk 0:02:56.2]} 5... Nf6
{[%clk 0:03:00.3]} 6. Nd2 {[%clk 0:02:55.9]} 6... d6 {[%clk 0:03:00.5]} 7. f4
{[%clk 0:02:55.5]} 7... Be7 {[%clk 0:03:00.7]} 8. Ngf3 {[%clk 0:02:54.8]} 8...
c5 {[%clk 0:02:59.3]} 9. O-O {[%clk 0:02:46.3]} 9... Nbd7 {[%clk 0:02:57.8]} 10.
h3 {[%clk 0:02:44.2]} 10... O-O {[%clk 0:02:57.1]} 11. Qe2 {[%clk 0:02:44.5]}
11... Rc8 {[%clk 0:02:47.3]} 12. Rad1 {[%clk 0:02:42.4]} 12... Qc7 {[%clk
0:02:44.5]} 13. e5 {[%clk 0:02:35.9]} 13... Nd5 {[%clk 0:02:40.8]} 14. Ne4
{[%clk 0:02:33.6]} 14... Nxe3 {[%clk 0:02:38.6]} 15. Qxe3 {[%clk 0:02:32.7]}
15... cxd4 {[%clk 0:02:36.6]} 16. cxd4 {[%clk 0:02:29.9]} 16... Nb6 {[%clk
0:02:26.6]} 17. Nfg5 {[%clk 0:02:14.6]} 17... h6 {[%clk 0:02:05.1]} 18. exd6
{[%clk 0:02:06.2]} 18... Bxd6 {[%clk 0:02:00.4]} 19. Nxd6 {[%clk 0:02:02.6]}
19... Qxd6 {[%clk 0:02:01.3]} 20. Ne4 {[%clk 0:02:03]} 20... Qd5 {[%clk
0:01:58.4]} 21. Rf2 {[%clk 0:01:58.8]} 21... Rfd8 {[%clk 0:01:55.4]} 22. Bb1
{[%clk 0:01:58.4]} 22... Rc4 {[%clk 0:01:37.8]} 23. Rfd2 {[%clk 0:01:55.7]}
23... Ba8 {[%clk 0:00:53]} 24. Qd3 {[%clk 0:01:54.4]} 24... f5 {[%clk
0:00:34.7]} 25. Nc3 {[%clk 0:01:44.5]} 25... Qd6 {[%clk 0:00:31.3]} 26. b3
{[%clk 0:01:30.4]} 26... Rcc8 {[%clk 0:00:27.9]} 27. Qe3 {[%clk 0:01:26.3]}
27... b4 {[%clk 0:00:24.4]} 28. Ne2 {[%clk 0:01:26.2]} 28... Nd5 {[%clk
0:00:23.1]} 29. Qg3 {[%clk 0:01:26]} 29... Nc3 {[%clk 0:00:20.5]} 30. Re1 {[%clk
0:01:19.9]} 30... Nxb1 {[%clk 0:00:16.5]} 31. Rxb1 {[%clk 0:01:19.5]} 31... Be4
{[%clk 0:00:17.1]} 32. Rbd1 {[%clk 0:01:13.2]} 32... a5 {[%clk 0:00:16.7]} 33.
Qe3 {[%clk 0:01:12.5]} 33... Rc2 {[%clk 0:00:13.9]} 34. Rxc2 {[%clk 0:01:07.2]}
34... Bxc2 {[%clk 0:00:14.8]} 35. Rc1 {[%clk 0:01:07.6]} 35... Be4 {[%clk
0:00:14.6]} 36. Rc5 {[%clk 0:01:08.2]} 36... Qa6 {[%clk 0:00:08.4]} 37. Ng3
{[%clk 0:01:04.9]} 37... Bb1 {[%clk 0:00:08.3]} 38. Qe5 {[%clk 0:00:58]} 38...
Bxa2 {[%clk 0:00:05]} 39. Rc7 {[%clk 0:00:57.8]} 39... Qd6 {[%clk 0:00:01.7]}
40. Qxg7# {[%clk 0:00:57.7]} 1-0

[Event "Late-Titled-Tuesday-Blitz-June-25-2024"]
[Site "Chess.com"]
[Date "2024.06.25"]
[Round "4"]
[White "ManMish2"]
[Black "petr577"]
[Result "1-0"]
[WhiteElo "2632"]
[BlackElo "2356"]
[TimeControl "180+1"]
[EndTime "14:36:45 PDT"]
[Termination "ManMish2 won by resignation"]

1. e4 {[%clk 0:03:00.9]} 1... e5 {[%clk 0:02:00.8]} 2. Nf3 {[%clk 0:02:58.9]}
2... Nc6 {[%clk 0:02:01.3]} 3. Bb5 {[%clk 0:02:57.6]} 3... f5 {[%clk 0:02:00.7]}
4. d4 {[%clk 0:02:56.4]} 4... fxe4 {[%clk 0:02:00.1]} 5. Bxc6 {[%clk 0:02:55.5]}
5... dxc6 {[%clk 0:01:54.8]} 6. Nxe5 {[%clk 0:02:55.5]} 6... Nf6 {[%clk
0:01:53.5]} 7. O-O {[%clk 0:02:53.9]} 7... c5 {[%clk 0:01:42.2]} 8. c3 {[%clk
0:02:09.4]} 8... Bd6 {[%clk 0:01:37.6]} 9. Bg5 {[%clk 0:02:02.1]} 9... Qe7
{[%clk 0:01:33.5]} 10. f4 {[%clk 0:01:41.1]} 10... O-O {[%clk 0:01:12.5]} 11.
Nd2 {[%clk 0:01:33]} 11... cxd4 {[%clk 0:00:54.4]} 12. cxd4 {[%clk 0:01:28.1]}
12... Bf5 {[%clk 0:00:44.4]} 13. g4 {[%clk 0:00:54.3]} 13... e3 {[%clk
0:00:41.9]} 14. Ndc4 {[%clk 0:00:48.9]} 14... Be4 {[%clk 0:00:35.4]} 15. Nxe3
{[%clk 0:00:48.1]} 15... c5 {[%clk 0:00:21.1]} 16. Rc1 {[%clk 0:00:23.1]} 16...
Rad8 {[%clk 0:00:18]} 17. Nf5 {[%clk 0:00:12.3]} 17... Bxf5 {[%clk 0:00:17.1]}
18. gxf5 {[%clk 0:00:13.2]} 18... cxd4 {[%clk 0:00:12.7]} 19. Re1 {[%clk
0:00:13.3]} 19... Bb8 {[%clk 0:00:04.4]} 20. Qb3+ {[%clk 0:00:12.2]} 20... Kh8
{[%clk 0:00:04.3]} 21. Ng6+ {[%clk 0:00:12.3]} 21... hxg6 {[%clk 0:00:01.5]} 22.
Rxe7 {[%clk 0:00:13.2]} 1-0

[Event "Late-Titled-Tuesday-Blitz-June-25-2024"]
[Site "Chess.com"]
[Date "2024.06.25"]
[Round "4"]
[White "bubeliang"]
[Black "Sondremelaa"]
[Result "1-0"]
[WhiteElo "2792"]
[BlackElo "2581"]
[TimeControl "180+1"]
[EndTime "14:36:49 PDT"]
[Termination "bubeliang won on time"]

1. b3 {[%clk 0:03:00]} 1... e5 {[%clk 0:02:45.4]} 2. Bb2 {[%clk 0:02:59.6]} 2...
Nc6 {[%clk 0:02:45.5]} 3. e3 {[%clk 0:03:00.1]} 3... d5 {[%clk 0:02:45.7]} 4.
Bb5 {[%clk 0:03:00]} 4... Bd6 {[%clk 0:02:44.4]} 5. Nf3 {[%clk 0:02:59]} 5...
Qe7 {[%clk 0:02:41]} 6. O-O {[%clk 0:02:52.3]} 6... Nf6 {[%clk 0:02:40.2]} 7. d4
{[%clk 0:02:51.9]} 7... exd4 {[%clk 0:02:29.1]} 8. exd4 {[%clk 0:02:47.4]} 8...
O-O {[%clk 0:02:28.8]} 9. Re1 {[%clk 0:02:46]} 9... Qd8 {[%clk 0:02:27.9]} 10.
Bxc6 {[%clk 0:02:42.7]} 10... bxc6 {[%clk 0:02:27.7]} 11. Nbd2 {[%clk
0:02:43.6]} 11... Bf5 {[%clk 0:02:25.2]} 12. Ne5 {[%clk 0:02:43.6]} 12... c5
{[%clk 0:02:10.4]} 13. Ndf3 {[%clk 0:02:40.3]} 13... Re8 {[%clk 0:02:06.1]} 14.
dxc5 {[%clk 0:02:28.9]} 14... Bxc5 {[%clk 0:02:04.8]} 15. Nd4 {[%clk 0:02:25.4]}
15... Bg6 {[%clk 0:01:59]} 16. Nxg6 {[%clk 0:02:12.9]} 16... hxg6 {[%clk
0:01:59]} 17. Qf3 {[%clk 0:02:10.7]} 17... Qd7 {[%clk 0:01:54.9]} 18. Rad1
{[%clk 0:02:08.5]} 18... Rxe1+ {[%clk 0:01:53]} 19. Rxe1 {[%clk 0:02:08.2]}
19... Re8 {[%clk 0:01:53.6]} 20. Rd1 {[%clk 0:02:06.7]} 20... Qe7 {[%clk
0:01:42]} 21. g3 {[%clk 0:02:04.3]} 21... Qe4 {[%clk 0:01:42]} 22. Qxe4 {[%clk
0:02:02.9]} 22... Rxe4 {[%clk 0:01:42.9]} 23. Kf1 {[%clk 0:02:01.1]} 23... Bb6
{[%clk 0:01:42]} 24. Nf3 {[%clk 0:01:54.2]} 24... c6 {[%clk 0:01:31.1]} 25. Bd4
{[%clk 0:01:45.4]} 25... Bxd4 {[%clk 0:01:19.5]} 26. Rxd4 {[%clk 0:01:40.4]}
26... Kf8 {[%clk 0:01:16.9]} 27. Rxe4 {[%clk 0:01:32.9]} 27... Nxe4 {[%clk
0:01:16.7]} 28. a4 {[%clk 0:01:32]} 28... f6 {[%clk 0:01:06.4]} 29. Ke2 {[%clk
0:01:31.8]} 29... Ke7 {[%clk 0:01:06.4]} 30. Nd2 {[%clk 0:01:28.6]} 30... Nxd2
{[%clk 0:01:03.4]} 31. Kxd2 {[%clk 0:01:28.6]} 31... Kd6 {[%clk 0:00:56.2]} 32.
b4 {[%clk 0:01:19.1]} 32... Ke5 {[%clk 0:00:40.5]} 33. Kd3 {[%clk 0:01:13.7]}
33... g5 {[%clk 0:00:37.8]} 34. c3 {[%clk 0:01:03]} 34... g4 {[%clk 0:00:32.5]}
35. Ke3 {[%clk 0:01:02.4]} 35... a6 {[%clk 0:00:12.9]} 36. Kd3 {[%clk
0:01:00.2]} 36... Ke6 {[%clk 0:00:08]} 37. Kd4 {[%clk 0:00:48.3]} 37... Kd6
{[%clk 0:00:05.6]} 38. c4 {[%clk 0:00:48.9]} 38... g6 {[%clk 0:00:01.1]} 39.
cxd5 {[%clk 0:00:46.2]} 1-0

[Event "Late-Titled-Tuesday-Blitz-June-25-2024"]
[Site "Chess.com"]
[Date "2024.06.25"]
[Round "4"]
[White "kubal123"]
[Black "HowTo2Draw"]
[Result "1/2-1/2"]
[WhiteElo "2288"]
[BlackElo "2502"]
[TimeControl "180+1"]
[EndTime "14:36:49 PDT"]
[Termination "Game drawn by repetition"]

1. d4 {[%clk 0:02:52.3]} 1... f5 {[%clk 0:02:59.1]} 2. c4 {[%clk 0:02:52.3]}
2... Nf6 {[%clk 0:02:56]} 3. Nf3 {[%clk 0:02:52.6]} 3... g6 {[%clk 0:02:54.5]}
4. g3 {[%clk 0:02:53]} 4... Bg7 {[%clk 0:02:54.2]} 5. Bg2 {[%clk 0:02:53.9]}
5... O-O {[%clk 0:02:54]} 6. O-O {[%clk 0:02:54.8]} 6... c6 {[%clk 0:02:53.3]}
7. Nc3 {[%clk 0:02:52.1]} 7... d6 {[%clk 0:02:53.2]} 8. b3 {[%clk 0:02:46.7]}
8... Na6 {[%clk 0:02:52.3]} 9. Bb2 {[%clk 0:02:47.1]} 9... Nc7 {[%clk
0:02:46.9]} 10. Qc2 {[%clk 0:02:35.3]} 10... Qe8 {[%clk 0:02:27.3]} 11. e4
{[%clk 0:02:31.1]} 11... e5 {[%clk 0:02:27.6]} 12. Rfe1 {[%clk 0:02:24.4]} 12...
f4 {[%clk 0:02:12.6]} 13. gxf4 {[%clk 0:02:12.1]} 13... Nh5 {[%clk 0:01:56.8]}
14. fxe5 {[%clk 0:02:08.5]} 14... dxe5 {[%clk 0:01:52.3]} 15. Nxe5 {[%clk
0:01:59.2]} 15... Bxe5 {[%clk 0:01:50.8]} 16. dxe5 {[%clk 0:02:00.1]} 16... Nf4
{[%clk 0:01:46.9]} 17. Ne2 {[%clk 0:01:56.9]} 17... Nce6 {[%clk 0:01:40.9]} 18.
Bf1 {[%clk 0:01:26.8]} 18... Qe7 {[%clk 0:01:24.4]} 19. Nxf4 {[%clk 0:01:24.3]}
19... Nxf4 {[%clk 0:01:23]} 20. Kh1 {[%clk 0:01:24.4]} 20... Be6 {[%clk
0:01:18.2]} 21. Rad1 {[%clk 0:01:22.3]} 21... Qh4 {[%clk 0:01:16.6]} 22. f3
{[%clk 0:01:22.4]} 22... Rad8 {[%clk 0:01:02.2]} 23. Rxd8 {[%clk 0:01:21.3]}
23... Qxe1 {[%clk 0:00:59.5]} 24. Rxf8+ {[%clk 0:01:11.3]} 24... Kxf8 {[%clk
0:01:00.4]} 25. Qc1 {[%clk 0:01:11.5]} 25... Qh4 {[%clk 0:00:41.9]} 26. Qe3
{[%clk 0:01:06.5]} 26... b6 {[%clk 0:00:27.5]} 27. Bc1 {[%clk 0:01:03.1]} 27...
g5 {[%clk 0:00:27.2]} 28. Qd4 {[%clk 0:00:55.2]} 28... Qe1 {[%clk 0:00:21.5]}
29. Qd8+ {[%clk 0:00:43.9]} 29... Kf7 {[%clk 0:00:20.5]} 30. Qf6+ {[%clk
0:00:39]} 30... Ke8 {[%clk 0:00:15.4]} 31. Qh8+ {[%clk 0:00:38.1]} 31... Kd7
{[%clk 0:00:14.8]} 32. Qg7+ {[%clk 0:00:36.2]} 32... Kc8 {[%clk 0:00:14.9]} 33.
Qf8+ {[%clk 0:00:35.7]} 33... Kb7 {[%clk 0:00:15.4]} 34. Qe7+ {[%clk 0:00:35.4]}
34... Kb8 {[%clk 0:00:13.8]} 35. Qd6+ {[%clk 0:00:31.7]} 35... Kb7 {[%clk
0:00:12.4]} 36. Qe7+ {[%clk 0:00:31.3]} 36... Ka6 {[%clk 0:00:12.4]} 37. Qa3+
{[%clk 0:00:31.2]} 37... Kb7 {[%clk 0:00:13]} 38. Qe7+ {[%clk 0:00:31.4]}
1/2-1/2

[Event "Late-Titled-Tuesday-Blitz-June-25-2024"]
[Site "Chess.com"]
[Date "2024.06.25"]
[Round "4"]
[White "Eloist"]
[Black "albi1999"]
[Result "1/2-1/2"]
[WhiteElo "2469"]
[BlackElo "2638"]
[TimeControl "180+1"]
[EndTime "14:36:55 PDT"]
[Termination "Game drawn by repetition"]

1. e4 {[%clk 0:02:54.5]} 1... c5 {[%clk 0:02:51.9]} 2. Nf3 {[%clk 0:02:54.5]}
2... a6 {[%clk 0:02:45.5]} 3. g3 {[%clk 0:02:53.2]} 3... b5 {[%clk 0:02:43.7]}
4. Bg2 {[%clk 0:02:52.7]} 4... Bb7 {[%clk 0:02:44.6]} 5. Qe2 {[%clk 0:02:52.7]}
5... Nf6 {[%clk 0:02:42.9]} 6. e5 {[%clk 0:02:46.1]} 6... Nd5 {[%clk 0:02:38.7]}
7. O-O {[%clk 0:02:41.2]} 7... e6 {[%clk 0:02:37.6]} 8. d3 {[%clk 0:02:40.6]}
8... Be7 {[%clk 0:02:36.3]} 9. c4 {[%clk 0:02:40.2]} 9... Nb6 {[%clk 0:02:35]}
10. Nc3 {[%clk 0:02:35.8]} 10... b4 {[%clk 0:02:18.1]} 11. Ne4 {[%clk
0:02:34.6]} 11... O-O {[%clk 0:02:10.8]} 12. h4 {[%clk 0:02:31.8]} 12... f5
{[%clk 0:02:07]} 13. exf6 {[%clk 0:02:28.2]} 13... gxf6 {[%clk 0:02:07.9]} 14.
Bh6 {[%clk 0:02:24.9]} 14... Rf7 {[%clk 0:02:07.5]} 15. Rad1 {[%clk 0:01:54.2]}
15... d5 {[%clk 0:01:47.8]} 16. Ned2 {[%clk 0:01:40.3]} 16... Qd6 {[%clk
0:01:23]} 17. Bh3 {[%clk 0:01:27.8]} 17... e5 {[%clk 0:01:11.6]} 18. h5 {[%clk
0:01:20]} 18... Nc6 {[%clk 0:01:02.8]} 19. cxd5 {[%clk 0:01:13.5]} 19... Qxd5
{[%clk 0:00:55.9]} 20. Qe4 {[%clk 0:00:44]} 20... Nd4 {[%clk 0:00:47.9]} 21.
Nxd4 {[%clk 0:00:39.6]} 21... cxd4 {[%clk 0:00:44.3]} 22. Qxd5 {[%clk
0:00:31.8]} 22... Bxd5 {[%clk 0:00:44.2]} 23. Bg2 {[%clk 0:00:21.5]} 23... Bxg2
{[%clk 0:00:38.3]} 24. Kxg2 {[%clk 0:00:22.4]} 24... Bf8 {[%clk 0:00:31.7]} 25.
Bxf8 {[%clk 0:00:21]} 25... Rfxf8 {[%clk 0:00:32]} 26. Rc1 {[%clk 0:00:21]}
26... Rfc8 {[%clk 0:00:31.9]} 27. Ne4 {[%clk 0:00:19.6]} 27... Nd7 {[%clk
0:00:21.3]} 28. Nd6 {[%clk 0:00:16.7]} 28... Rc5 {[%clk 0:00:20.4]} 29. Ne4
{[%clk 0:00:14.1]} 29... Rcc8 {[%clk 0:00:18.3]} 30. Nd6 {[%clk 0:00:14]} 30...
Rc5 {[%clk 0:00:16.4]} 31. Ne4 {[%clk 0:00:13.9]} 31... Rcc8 {[%clk 0:00:08.8]}
1/2-1/2

[Event "Late-Titled-Tuesday-Blitz-June-25-2024"]
[Site "Chess.com"]
[Date "2024.06.25"]
[Round "4"]
[White "HansOnTwitch"]
[Black "AlexeiShirov"]
[Result "0-1"]
[WhiteElo "3106"]
[BlackElo "2876"]
[TimeControl "180+1"]
[EndTime "14:36:59 PDT"]
[Termination "AlexeiShirov won on time"]

1. e4 {[%clk 0:02:59.3]} 1... e5 {[%clk 0:02:58.6]} 2. Nf3 {[%clk 0:02:59.6]}
2... Nc6 {[%clk 0:02:58.5]} 3. Bc4 {[%clk 0:03:00.4]} 3... Nf6 {[%clk
0:02:57.4]} 4. d3 {[%clk 0:03:00.9]} 4... Bc5 {[%clk 0:02:56.3]} 5. c3 {[%clk
0:03:01]} 5... O-O {[%clk 0:02:55.1]} 6. Bg5 {[%clk 0:02:49.4]} 6... h6 {[%clk
0:02:50.7]} 7. Bh4 {[%clk 0:02:49.8]} 7... g5 {[%clk 0:02:48.1]} 8. Bg3 {[%clk
0:02:48.6]} 8... d5 {[%clk 0:02:46.9]} 9. exd5 {[%clk 0:02:43.8]} 9... Nxd5
{[%clk 0:02:46.3]} 10. Nbd2 {[%clk 0:02:29.1]} 10... Nf4 {[%clk 0:02:45]} 11.
Bxf4 {[%clk 0:02:23.9]} 11... exf4 {[%clk 0:02:43.4]} 12. Ne4 {[%clk 0:02:23.2]}
12... Be7 {[%clk 0:02:32.3]} 13. d4 {[%clk 0:02:02.8]} 13... Kg7 {[%clk
0:02:24.6]} 14. O-O {[%clk 0:01:38.7]} 14... f5 {[%clk 0:02:14]} 15. Ned2 {[%clk
0:01:36.3]} 15... Bf6 {[%clk 0:02:12.5]} 16. Qc2 {[%clk 0:01:27.7]} 16... Qd6
{[%clk 0:01:44.5]} 17. Bb3 {[%clk 0:01:22.2]} 17... Na5 {[%clk 0:01:40.3]} 18.
Rfe1 {[%clk 0:01:19.2]} 18... Nxb3 {[%clk 0:01:37.8]} 19. Qxb3 {[%clk
0:01:16.6]} 19... Qb6 {[%clk 0:01:33.3]} 20. Nc4 {[%clk 0:01:14.2]} 20... Qxb3
{[%clk 0:01:30.9]} 21. axb3 {[%clk 0:01:15.1]} 21... Bd7 {[%clk 0:01:24.2]} 22.
Nfe5 {[%clk 0:01:12.8]} 22... Bb5 {[%clk 0:01:23.6]} 23. Na3 {[%clk 0:00:48.4]}
23... Be8 {[%clk 0:01:22.8]} 24. Nc2 {[%clk 0:00:46.4]} 24... a5 {[%clk
0:01:21.9]} 25. b4 {[%clk 0:00:42.4]} 25... a4 {[%clk 0:01:20.2]} 26. Na3 {[%clk
0:00:39]} 26... b6 {[%clk 0:01:09]} 27. Re2 {[%clk 0:00:18.4]} 27... Rd8 {[%clk
0:01:07.3]} 28. Rae1 {[%clk 0:00:17.9]} 28... Bh5 {[%clk 0:01:06.4]} 29. f3
{[%clk 0:00:18.5]} 29... Rfe8 {[%clk 0:01:05.6]} 30. Nb5 {[%clk 0:00:18.5]}
30... Re7 {[%clk 0:01:03.2]} 31. Na7 {[%clk 0:00:17.1]} 31... Rde8 {[%clk
0:01:01.7]} 32. Nac6 {[%clk 0:00:17.3]} 32... Re6 {[%clk 0:01:01]} 33. d5 {[%clk
0:00:18]} 33... Rd6 {[%clk 0:01:00.9]} 34. c4 {[%clk 0:00:18.7]} 34... b5 {[%clk
0:00:57.2]} 35. Na7 {[%clk 0:00:02.7]} 35... bxc4 {[%clk 0:00:55]} 36. Nb5
{[%clk 0:00:03.2]} 36... Rxd5 {[%clk 0:00:54.3]} 37. Nxc7 {[%clk 0:00:03.7]}
37... Rexe5 {[%clk 0:00:53.5]} 38. Nxd5 {[%clk 0:00:03.9]} 38... Rxd5 {[%clk
0:00:53.3]} 39. Rc2 {[%clk 0:00:04.6]} 39... Bf7 {[%clk 0:00:46]} 40. Rxc4
{[%clk 0:00:04.7]} 40... Bxb2 {[%clk 0:00:45.5]} 41. Rc7 {[%clk 0:00:02]} 41...
Kf6 {[%clk 0:00:43.8]} 42. Ra7 {[%clk 0:00:01.7]} 42... Bd4+ {[%clk 0:00:42.1]}
0-1

[Event "Late-Titled-Tuesday-Blitz-June-25-2024"]
[Site "Chess.com"]
[Date "2024.06.25"]
[Round "4"]
[White "Maus7"]
[Black "rasmussvane"]
[Result "0-1"]
[WhiteElo "2670"]
[BlackElo "2983"]
[TimeControl "180+1"]
[EndTime "14:36:59 PDT"]
[Termination "rasmussvane won by checkmate"]

1. e4 {[%clk 0:03:00.9]} 1... c6 {[%clk 0:02:58.3]} 2. Nf3 {[%clk 0:02:59.4]}
2... d5 {[%clk 0:02:59.2]} 3. Nc3 {[%clk 0:02:59.5]} 3... dxe4 {[%clk
0:02:58.6]} 4. Nxe4 {[%clk 0:03:00.4]} 4... Nf6 {[%clk 0:02:59.2]} 5. Nxf6+
{[%clk 0:03:00.9]} 5... exf6 {[%clk 0:02:59.4]} 6. Bc4 {[%clk 0:03:01.5]} 6...
Bd6 {[%clk 0:02:59.7]} 7. Qe2+ {[%clk 0:03:01.9]} 7... Be7 {[%clk 0:02:58.9]} 8.
O-O {[%clk 0:03:00.9]} 8... O-O {[%clk 0:02:59.2]} 9. d4 {[%clk 0:03:01.2]} 9...
Bd6 {[%clk 0:02:57.8]} 10. Re1 {[%clk 0:03:00.2]} 10... Na6 {[%clk 0:02:57.8]}
11. c3 {[%clk 0:02:35.4]} 11... Nc7 {[%clk 0:02:57.5]} 12. Qc2 {[%clk
0:02:33.7]} 12... Bg4 {[%clk 0:02:50.8]} 13. Nd2 {[%clk 0:02:31.9]} 13... Re8
{[%clk 0:02:45.1]} 14. Rxe8+ {[%clk 0:02:23.5]} 14... Qxe8 {[%clk 0:02:46]} 15.
Ne4 {[%clk 0:02:12.1]} 15... Bf8 {[%clk 0:02:40.5]} 16. Bd2 {[%clk 0:02:03]}
16... Qd7 {[%clk 0:02:38.4]} 17. h3 {[%clk 0:01:56.8]} 17... Bf5 {[%clk
0:02:36]} 18. Re1 {[%clk 0:01:42.8]} 18... Rd8 {[%clk 0:02:32.7]} 19. Bc1 {[%clk
0:01:21]} 19... Bg6 {[%clk 0:02:31]} 20. Bd3 {[%clk 0:00:55]} 20... b6 {[%clk
0:02:17.6]} 21. Ng3 {[%clk 0:00:54]} 21... Bxd3 {[%clk 0:01:57.2]} 22. Qxd3
{[%clk 0:00:54.9]} 22... c5 {[%clk 0:01:57.1]} 23. Be3 {[%clk 0:00:54.7]} 23...
cxd4 {[%clk 0:01:56.2]} 24. cxd4 {[%clk 0:00:51.3]} 24... Nd5 {[%clk 0:01:56.1]}
25. Rc1 {[%clk 0:00:47.3]} 25... g6 {[%clk 0:01:54.5]} 26. Ne4 {[%clk
0:00:45.8]} 26... f5 {[%clk 0:01:52.1]} 27. Nc3 {[%clk 0:00:45.9]} 27... Bg7
{[%clk 0:01:49.1]} 28. a3 {[%clk 0:00:44.8]} 28... Nxe3 {[%clk 0:01:37.7]} 29.
fxe3 {[%clk 0:00:44.8]} 29... f4 {[%clk 0:01:38.2]} 30. Ne2 {[%clk 0:00:40.9]}
30... fxe3 {[%clk 0:01:37]} 31. Qxe3 {[%clk 0:00:41.8]} 31... Re8 {[%clk
0:01:25.8]} 32. Qd3 {[%clk 0:00:41.9]} 32... Qe6 {[%clk 0:01:20.7]} 33. Nc3
{[%clk 0:00:41.4]} 33... Qd7 {[%clk 0:01:17]} 34. d5 {[%clk 0:00:41.1]} 34...
Be5 {[%clk 0:01:10.7]} 35. Rd1 {[%clk 0:00:41.2]} 35... Bd6 {[%clk 0:01:07]} 36.
Ne4 {[%clk 0:00:41]} 36... Be5 {[%clk 0:01:04.1]} 37. b4 {[%clk 0:00:37.7]}
37... Rd8 {[%clk 0:00:46.1]} 38. Qf3 {[%clk 0:00:37]} 38... Qe7 {[%clk
0:00:41.8]} 39. Kh1 {[%clk 0:00:37]} 39... f5 {[%clk 0:00:42.1]} 40. Nf2 {[%clk
0:00:31.8]} 40... Bc7 {[%clk 0:00:37.3]} 41. Nd3 {[%clk 0:00:31.5]} 41... Qd6
{[%clk 0:00:36.8]} 42. Kg1 {[%clk 0:00:30.5]} 42... Re8 {[%clk 0:00:35.3]} 43.
Kf1 {[%clk 0:00:22.8]} 43... Qh2 {[%clk 0:00:33.2]} 44. Nf2 {[%clk 0:00:22.2]}
44... Bd6 {[%clk 0:00:30.9]} 45. Re1 {[%clk 0:00:18.3]} 45... Qg1+ {[%clk
0:00:30.9]} 46. Kxg1 {[%clk 0:00:17.5]} 46... Rxe1# {[%clk 0:00:31.6]} 0-1